Cogmind - Beta 16 @@@ ROGUE MODE // 2026.01.26 @ 13:52:16 Player: applejuice Result: Destroyed by H-81 Overseer with Heavy Linear Accelerator Performance ------------- Evolutions (8) 4000 Regions Visited (17) 3400 Robots Destroyed (85) 425 Value Destroyed (2327) 2327 Prototype IDs (17) 340 Alien Tech Used (5) 1000 Bonus (395) 395 TOTAL SCORE: 11887 Bonus ------- Follower Combat Kills 395 Cogmind --------- Core Integrity 0/1450 Matter 285/300 Energy 100/100 System Corruption 22% Temperature Cool (0) Movement Core (50) Location -2/Research Parts ------- > --- POWER (2) -------- (None) > --- PROPULSION (7) --- (None) > --- UTILITY (11) ----- Advanced Signal Interpreter Advanced System Shield > --- WEAPON (3) ------- (None) > --- INVENTORY (5) ---- Light Quantum Reactor Advanced Sensor Array Peak State ------------ > --- POWER ------------ Micro Antimatter Reactor Quantum Reactor > --- PROPULSION ------- Field Propulsion Drive Field Propulsion Array Field Propulsion Array Impulse Thruster Array > --- UTILITY ---------- Enhanced Optical Array Advanced Sensor Array Advanced Signal Interpreter Terrain Scan Processor Advanced ECM Suite Hacking Suite Hacking Suite Improved Hacking Suite Advanced Hacking Suite Advanced System Shield > --- WEAPON ----------- Advanced Datajack Heavy Pick Force Lance > --- INVENTORY -------- Impulse Thruster Advanced Sensor Array Improved Phase Shifter Subatomic Replicator Fusion Bomb Launcher [Rating: 134] Favorites ----------- Power Nuclear Core Engine Improved Deuterium Engine Power Core Nuclear Core Reactor Fusion Reactor Propulsion Xenon Bombardment Thruster Leg Improved Titanium Leg Flight Unit Xenon Bombardment Thruster Utility Medium Storage Unit Device Advanced Sensor Array Storage Medium Storage Unit Processor Improved Signal Interpreter Hackware Hacking Suite Protection Hardened Medium Armor Plating Weapon Heavy Pick Energy Gun Medium Laser Energy Cannon Advanced Beam Cannon Ballistic Gun High-powered Shotgun Ballistic Cannon Gauss Cannon Launcher Fusion Bomb Launcher Impact Weapon Great Maul Slashing Weapon Chainsword Piercing Weapon Heavy Pick Special Melee Weapon Advanced Datajack Build | -11 -10 -9 -8 -7 -7 -7 -6 -5 -5 -5 -5 -4 -4 -4 -3 -3 -2 ------- Run | Yrd Mat Mat Mat Fac Low Low Fac Fac Upp Upp Zhi Pro Fac Ext Res Qua Res Slots Evolved 16 | . . 2 2 2 . . 2 2 . . . . 2 . 2 . 2 Power 1 | . . . . . . . 1 . . . . . . . . . . Propulsion 5 | . . 2 . . . . 1 2 . . . . . . . . . Utility 9 | . . . 2 1 . . . . . . . . 2 . 2 . 2 Weapon 1 | . . . . 1 . . . . . . . . . . . . . Parts Attached 107 | 8 2 8 15 18 1 . 9 5 1 . 4 6 9 1 6 6 8 Power 13 | 1 . 1 1 2 . . 2 1 . . 1 . . 1 . 1 2 Engine 4 | 1 . . 1 1 . . . . . . . . . . . . 1 Core 6 | . . 1 . 1 . . 2 1 . . . . . 1 . . . Reactor 3 | . . . . . . . . . . . 1 . . . . 1 1 Propulsion 35 | 2 . 4 5 8 . . 3 1 1 . . 1 4 . 3 1 2 Treads . | . . . . . . . . . . . . . . . . . . Leg 13 | 2 . 4 5 2 . . . . . . . . . . . . . Wheel . | . . . . . . . . . . . . . . . . . . Hover . | . . . . . . . . . . . . . . . . . . Flight 22 | . . . . 6 . . 3 1 1 . . 1 4 . 3 1 2 Utility 37 | 2 2 1 5 3 1 . 4 . . . 3 4 5 . 2 3 2 Device 18 | 1 . 1 2 3 . . 3 . . . . 3 1 . 1 2 1 Storage 5 | 1 2 . . . . . . . . . 2 . . . . . . Processor 7 | . . . 2 . 1 . 1 . . . . 1 2 . . . . Hackware 5 | . . . . . . . . . . . . . 2 . 1 1 1 Protection 2 | . . . 1 . . . . . . . 1 . . . . . . Artifact . | . . . . . . . . . . . . . . . . . . Weapon 22 | 3 . 2 4 5 . . . 3 . . . 1 . . 1 1 2 Energy Gun 4 | 2 . . 1 1 . . . . . . . . . . . . . Energy Cannon 1 | . . . 1 . . . . . . . . . . . . . . Ballistic Gun 4 | 1 . 1 1 1 . . . . . . . . . . . . . Ballistic Cannon 3 | . . . . 3 . . . . . . . . . . . . . Launcher 2 | . . . . . . . . . . . . 1 . . . . 1 Special Weapon . | . . . . . . . . . . . . . . . . . . Impact Weapon 2 | . . 1 1 . . . . . . . . . . . . . . Slashing Weapon 1 | . . . . . . . . . . . . . . . 1 . . Piercing Weapon 4 | . . . . . . . . 3 . . . . . . . 1 . Special Melee Weapon 1 | . . . . . . . . . . . . . . . . . 1 Unidentified Prototypes 11 | . . . 1 . . . 1 . . . 6 . . . . 3 . Parts Lost 44 | . . . . 8 . . 1 . . 5 . 5 . . 2 5 18 Power 6 | . . . . 1 . . . . . 1 . . . . 1 1 2 Propulsion 21 | . . . . 4 . . . . . 4 . 4 . . . 3 6 Utility 12 | . . . . 2 . . 1 . . . . 1 . . 1 . 7 Weapon 5 | . . . . 1 . . . . . . . . . . . 1 3 Highest Loss Streak 17 | . . . . 2 . . 1 . . 5 . 4 . . 2 4 17 To Critical Strikes . | . . . . . . . . . . . . . . . . . . Average Backups 7 | 1 3 7 9 9 9 10 9 9 9 9 8 9 4 5 4 4 4 Power . | . 1 1 1 . 1 1 . 1 1 . . 1 . . . . . Propulsion 1 | . . . 3 5 3 3 2 1 1 1 . . . . 1 . . Utility 2 | . . 3 3 2 1 2 1 3 3 3 3 4 2 4 2 2 1 Weapon 2 | . 1 2 2 1 3 4 4 2 2 4 4 2 1 1 1 1 . Tool/Special . | . . . . . . . . . . . . . . . . . . Unused Backups 19 | . . 2 6 3 . . 2 . 2 . . . 1 . . 1 2 Power 3 | . . . 2 . . . . . . . . . . . . . 1 Propulsion 4 | . . 1 2 1 . . . . . . . . . . . . . Utility 7 | . . . 1 2 . . 1 . 1 . . . 1 . . 1 . Weapon 4 | . . 1 1 . . . 1 . 1 . . . . . . . . Tool/Special 1 | . . . . . . . . . . . . . . . . . 1 Average Slot Usage (%) 85 | . 100 89 99 91 82 84 80 91 97 79 66 74 62 82 81 75 67 Engine 3 | . 14 8 6 6 . . . . . . . . . . . . 1 Core 4 | . . 2 2 . 7 7 12 11 11 10 9 . 3 8 9 1 . Leg 12 | . 28 33 36 24 . . . . . . . . . . . . . Flight 17 | . . . . 2 30 30 33 40 41 38 29 33 17 26 20 19 15 Device 10 | . 14 11 10 12 15 15 12 11 11 11 7 10 10 10 13 8 7 Storage 5 | . 14 11 9 7 7 7 6 5 5 5 5 4 . . . . . Processor 10 | . . . 9 7 13 15 13 11 11 11 11 11 14 15 14 14 12 Hackware 3 | . . . . . . . . . . . . . 8 10 13 17 16 Protection 1 | . . . 7 4 . . . . . . . . . . . . . Energy Gun 1 | . 14 10 2 . . . . . . . . . . . . . . Ballistic Gun 4 | . 14 9 14 9 . . . . . . . . . . . . . Ballistic Cannon 1 | . . . . 7 . . . . . . . . . . . . . Piercing Weapon 3 | . . . . . . . . 5 14 . . 5 6 10 9 9 6 Peak Build Rating 134 | 7 7 13 38 46 43 38 47 71 76 58 54 67 87 93 121 117 134 Average Rating 55 | 5 6 9 33 41 37 38 43 62 70 55 48 59 66 91 114 107 104 On Entrance 48 | . 7 7 13 38 43 38 38 47 71 58 48 49 30 87 93 110 104 Avg Prop Armor Cover (%) 5 | . . . . . . . . . 6 7 . 4 . 4 . . . Naked Turns . | . . . . . . . . . . . . . . . . . . Heaviest Build 50 | 14 19 21 35 50 37 23 37 42 42 33 32 34 15 29 33 21 42 Greatest Support 80 | 20 20 40 80 80 24 24 35 48 48 48 34 41 43 43 55 55 53 Greatest Overweight (x) 14 | 3 . 1 . 14 1 . 1 . . 1 . . . . . . . Average Overweight (x) . | . . . . . . . . . . . . . . . . . . Largest Inventory Capacity 15 | 8 15 10 10 10 10 10 10 10 10 10 10 10 5 5 5 5 5 Average Capacity 8 | 7 8 10 10 10 10 10 10 10 10 10 10 9 5 5 5 5 5 Most Carried 10 | 2 6 10 10 10 10 10 10 10 10 10 10 10 5 5 5 5 5 Average Carried 7 | 1 3 8 9 9 9 10 9 9 9 9 8 9 4 5 4 4 4 Final Capacity 10 | 8 10 10 10 10 10 10 10 10 10 10 10 5 5 5 5 5 5 Final Carried 10 | 2 6 10 10 9 10 10 10 10 10 7 10 5 5 5 5 4 2 Class Distribution -------------------- 25% | Mutant 20% | Scout 19% | Hacker-Scout 12% | Skirmisher 10% | Ninja 4% | Scavenger-Mutant 3% | Hacker-Ninja Dominant Class ---------------- Mutant | -10/Materials Mutant | -9/Materials Mutant | -8/Materials Skirmisher | -7/Factory Scout | -7/Lower Caves Scout | -7/Lower Caves Scout | -6/Factory Ninja | -5/Factory Ninja | -5/Upper Caves Scout | -5/Upper Caves Scout | -5/Zhirov Scout | -4/Proximity Caves Hacker-Scout | -4/Factory Hacker-Scout | -4/Extension Hacker-Scout | -3/Research Hacker-Scout | -3/Quarantine Hacker-Ninja | -2/Research Resources | -11 -10 -9 -8 -7 -7 -7 -6 -5 -5 -5 -5 -4 -4 -4 -3 -3 -2 ----------- Run | Yrd Mat Mat Mat Fac Low Low Fac Fac Upp Upp Zhi Pro Fac Ext Res Qua Res Matter Collected 2935 | 279 65 184 464 1025 64 . 155 70 77 7 . 180 . 150 . 13 202 Remotely 84 | . . . . 47 37 . . . . . . . . . . . . Salvage Created 2455 | 181 78 442 617 720 . . . 31 . . . . . 77 . 40 269 Parts 154 | 12 3 30 39 46 . . . . . . . . . 2 . 2 20 Haulers Intercepted 3 | . . 1 2 . . . . . . . . . . . . . . Recyclers Shooed 4 | . . 1 . 3 . . . . . . . . . . . . . Parts Field Recycled . | . . . . . . . . . . . . . . . . . . Retrieved Matter . | . . . . . . . . . . . . . . . . . . Parts Self-Destructed 5 | . . . . . . . . . 1 2 . 2 . . . . . Prevented 4 | . . . . . . . . . 4 . . . . . . . . Parts Restored . | . . . . . . . . . . . . . . . . . . Kills | -11 -10 -9 -8 -7 -7 -7 -6 -5 -5 -5 -5 -4 -4 -4 -3 -3 -2 ------- Run | Yrd Mat Mat Mat Fac Low Low Fac Fac Upp Upp Zhi Pro Fac Ext Res Qua Res Combat Hostiles Destroyed 44 | . 2 10 9 20 . . . . . . . . . . . . 3 Guns 22 | . 2 10 7 3 . . . . . . . . . . . . . Cannons 17 | . . . . 17 . . . . . . . . . . . . . AOE 5 | . . . 2 . . . . . . . . . . . . . 3 Classes Destroyed 16 | 3 1 4 3 3 . . . . . . . . . . . 1 1 Worker 13 | 2 . 1 3 6 . . . . . . . . . . . . 1 Builder 7 | . . 1 1 3 . . . . . . . . . . . . 2 Tunneler 5 | 4 . . 1 . . . . . . . . . . . . . . Hauler 3 | . . 1 2 . . . . . . . . . . . . . . Recycler 4 | 1 . 1 . 1 . . . . . . . . . . . . 1 Operator 1 | . . 1 . . . . . . . . . . . . . . . Watcher 7 | . . . 4 . . . . 1 . . . . . 2 . . . Swarmer 12 | . . 5 . 7 . . . . . . . . . . . . . Cutter 3 | . . . . . . . . . . . . . . . . . 3 Grunt 16 | . 2 5 4 5 . . . . . . . . . . . . . Brawler 1 | . . . . 1 . . . . . . . . . . . . . Duelist 1 | . . . . 1 . . . . . . . . . . . . . Researcher 1 | . . . . . . . . . . . . . . . . 1 . Sentry 6 | . . . 4 2 . . . . . . . . . . . . . Hunter 2 | . . . 1 1 . . . . . . . . . . . . . Programmer 3 | . . . . 3 . . . . . . . . . . . . . Best Kill Streak 8 | 4 2 4 5 8 . . . 1 . . . . . 1 . 1 4 Combat Bots Only 6 | . 2 4 2 6 . . . . . . . . . . . . 3 Max Kills in Single Turn 5 | 1 1 1 5 2 . . . 1 . . . . . 1 . 1 2 Gunslinging . | . . . . . . . . . . . . . . . . . . Exploded 2 | . . . 1 . . . . . . . . . . . . . 2 Melee . | . . . . . . . . . . . . . . . . . . Uniques/NPCs Destroyed . | . . . . . . . . . . . . . . . . . . Combat | -11 -10 -9 -8 -7 -7 -7 -6 -5 -5 -5 -5 -4 -4 -4 -3 -3 -2 -------- Run | Yrd Mat Mat Mat Fac Low Low Fac Fac Upp Upp Zhi Pro Fac Ext Res Qua Res Hostile Shots Fired 488 | . 8 38 53 150 . . 22 4 4 35 . 45 . 2 25 18 84 Missed 191 | . 3 8 16 52 . . 15 2 3 14 . 20 . . 12 13 33 Hits 297 | . 5 30 37 98 . . 7 2 1 21 . 25 . 2 13 5 51 Melee 14 | . . . . 4 . . . . . . . 1 . . . . 9 Projectile 283 | . 5 30 37 94 . . 7 2 1 21 . 24 . 2 13 5 42 AOE 4 | . . . . 1 . . . . . . . . . . . . 3 Critical Strikes 14 | . . 1 3 . . . . . . . . 1 . . . . 9 Part Disruptions 2 | . . . . 1 . . . . . . . . . . . . 1 Damage Taken 7082 | . 54 313 693 1502 . . 75 47 26 363 . 413 . 39 344 611 2602 Core 2518 | . 31 70 65 112 . . 39 47 . 95 . 210 . . 72 286 1491 Absorbed by Shields . | . . . . . . . . . . . . . . . . . . Core Remaining (%) 85 | 100 87 82 88 . . 84 95 . . . . 58 . 100 . 72 . Volleys Fired 174 | 23 11 35 45 58 . . . . . . . . . . . . 2 Largest 3 | 2 2 2 2 3 . . . . . . . . . . . . 1 Hottest 120 | 70 70 73 75 120 . . . . . . . . . . . . 52 Shots Fired 396 | 46 22 69 90 167 . . . . . . . . . . . . 2 Gun 265 | 46 22 69 90 38 . . . . . . . . . . . . . Cannon 129 | . . . . 129 . . . . . . . . . . . . . Launcher 2 | . . . . . . . . . . . . . . . . . 2 Special . | . . . . . . . . . . . . . . . . . . Kinetic 295 | 23 11 35 78 148 . . . . . . . . . . . . . Thermal 96 | 23 11 34 9 19 . . . . . . . . . . . . . Explosive 2 | . . . . . . . . . . . . . . . . . 2 Electromagnetic 3 | . . . 3 . . . . . . . . . . . . . . Robot Hit Streak 15 | 7 6 5 15 8 . . . . . . . . . . . . 1 Robot Miss Streak 7 | 2 4 3 6 7 . . . . . . . . . . . . 3 Penetration Max 1 | . . . . 1 . . . . . . . . . . . . . Secondary Targets 1 | . . 1 . . . . . . . . . . . . . . . Max Gunslinging Chain 1 | . . 1 . . . . . . . . . . . . . . . Shots Hit Robots 236 | 28 13 37 61 80 . . . 1 . . . 3 . 3 3 2 5 Core Hits 131 | 11 5 22 36 42 . . . . . . . . . 2 1 2 10 Critical Kills . | . . . . . . . . . . . . . . . . . . Critical Parts Destroyed 1 | . . . . . . . . 1 . . . . . . . . . Critical Strikes 18 | . . 2 2 11 . . . 1 . . . . . 1 1 . . Burn 3 | . . 2 1 . . . . . . . . . . . . . . Destroy 1 | . . . 1 . . . . . . . . . . . . . . Blast 11 | . . . . 11 . . . . . . . . . . . . . Smash 1 | . . . . . . . . 1 . . . . . . . . . Sever 1 | . . . . . . . . . . . . . . . 1 . . Impale 1 | . . . . . . . . . . . . . . 1 . . . Melee Attacks 61 | . . 1 3 . . . 5 6 . . . 13 5 5 7 6 10 Impact 12 | . . 1 3 . . . 5 3 . . . . . . . . . Slashing 5 | . . . . . . . . . . . . . . . 4 1 . Piercing 44 | . . . . . . . . 3 . . . 13 5 5 3 5 10 Sneak Attacks 6 | . . . . . . . . 1 . . . . . . . 1 4 Combat Hostiles . | . . . . . . . . . . . . . . . . . . Follow-up Attacks 3 | . . . . . . . . . . . . 1 . . 1 1 . Damage Inflicted 6260 | 306 126 460 1588 2463 . . . 86 . . . 96 . 125 112 123 775 Guns 2310 | 306 126 460 1118 300 . . . . . . . . . . . . . Cannons 2155 | . . . . 2155 . . . . . . . . . . . . . Explosions 867 | . . . 470 . . . . . . . . . . . . . 397 Melee 900 | . . . . . . . . 86 . . . 96 . 125 112 123 358 Ramming 28 | . . . . 8 . . . . . . . . . . . . 20 Kinetic 3623 | 109 62 206 1019 2227 . . . . . . . . . . . . . Thermal 1163 | 197 64 254 420 228 . . . . . . . . . . . . . Explosive 508 | . . . 111 . . . . . . . . . . . . . 397 Electromagnetic 38 | . . . 38 . . . . . . . . . . . . . . Impact 86 | . . . . . . . . 86 . . . . . . . . . Slashing 82 | . . . . . . . . . . . . . . . 82 . . Piercing 732 | . . . . . . . . . . . . 96 . 125 30 123 358 Highest Corruption 22 | . . . . 3 3 3 . . . 2 2 2 . . 4 4 22 Average Corruption 2 | . . . . 1 3 3 . . . 1 2 1 . . 2 4 17 Corruption Purged 2 | . . . . . . . . . . . . 2 . . . . . Corruption Blocked . | . . . . . . . . . . . . . . . . . . Effects 29 | . . . . 8 4 . . . . 5 2 . . . . 4 6 Message Errors 9 | . . . . 4 1 . . . . 2 . . . . . 2 . Matter Fused 3 | . . . . 1 . . . . . . 1 . . . . . 1 Heat Flow Errors 2 | . . . . 1 1 . . . . . . . . . . . . Energy Discharges 5 | . . . . 1 1 . . . . 1 . . . . . 2 . Parts Fused 1 | . . . . . . . . . . . 1 . . . . . . Data Loss (minor) 3 | . . . . 1 1 . . . . 1 . . . . . . . Data Loss (major) 1 | . . . . . . . . . . 1 . . . . . . . Misdirections 5 | . . . . . . . . . . . . . . . . . 5 Overload Shots . | . . . . . . . . . . . . . . . . . . Overflow Damage 302 | . . . 34 45 . . . 86 . . . 4 . . . . 133 Projectiles 45 | . . . . 45 . . . . . . . . . . . . . Explosions 75 | . . . 34 . . . . . . . . . . . . . 41 Melee 182 | . . . . . . . . 86 . . . 4 . . . . 92 Knockbacks 21 | . . . . 21 . . . . . . . . . . . . . Impact . | . . . . . . . . . . . . . . . . . . Kinetic 17 | . . . . 17 . . . . . . . . . . . . . Secondary 4 | . . . . 4 . . . . . . . . . . . . . Self-Inflicted Damage 294 | . . . 126 . . . . . . . . . . . . . 168 Shots 4 | . . . 2 . . . . . . . . . . . . . 2 Rammed 3 | . . . . . . . . . . . . . . . . . 3 Targets Rammed 4 | . . . . 1 . . . . . . . . . . . . 3 Kicked 1 | . . . . 1 . . . . . . . . . . . . . Crushed . | . . . . . . . . . . . . . . . . . . Highest Temperature 509 | 170 124 159 102 509 182 . 186 349 317 309 125 294 . 72 1 . . Average Temperature 79 | 70 59 33 21 145 88 . 52 113 105 116 66 62 . 25 1 . . Received Heat Transfer 765 | . 30 117 279 231 . . 6 9 . 9 . 36 . 12 27 . 9 Effects 15 | . . . . 11 . . . . 2 1 . 1 . . . . . Shutdowns 4 | . . . . 4 . . . . . . . . . . . . . Energy Bleed 4 | . . . . 1 . . . . 2 1 . . . . . . . Interference 4 | . . . . 3 . . . . . . . 1 . . . . . Damage (minor) 3 | . . . . 3 . . . . . . . . . . . . . Siege Activations . | . . . . . . . . . . . . . . . . . . Martial Activations . | . . . . . . . . . . . . . . . . . . Shielding Activations . | . . . . . . . . . . . . . . . . . . Robots Disrupted . | . . . . . . . . . . . . . . . . . . Combat Hostiles . | . . . . . . . . . . . . . . . . . . Robots Corrupted . | . . . . . . . . . . . . . . . . . . Combat Hostiles . | . . . . . . . . . . . . . . . . . . Parts Fried . | . . . . . . . . . . . . . . . . . . Impact Corruptions 2 | . . . . . . . . 2 . . . . . . . . . Robots Melted . | . . . . . . . . . . . . . . . . . . Combat Hostiles . | . . . . . . . . . . . . . . . . . . Parts Melted 2 | 1 . 1 . . . . . . . . . . . . . . . Heat Transferred 2581 | 592 185 888 509 407 . . . . . . . . . . . . . Parts Sabotaged 3 | . . . . . . . . . . . . 3 . . . . . Parts Stolen . | . . . . . . . . . . . . . . . . . . Parts Stripped . | . . . . . . . . . . . . . . . . . . Power Chain Reactions . | . . . . . . . . . . . . . . . . . . Alert | -11 -10 -9 -8 -7 -7 -7 -6 -5 -5 -5 -5 -4 -4 -4 -3 -3 -2 ------- Run | Yrd Mat Mat Mat Fac Low Low Fac Fac Upp Upp Zhi Pro Fac Ext Res Qua Res Maximum Alert Level 1 | . . . 1 1 . . . . . . . . . 1 . . . Low Security (%) 87 | 100 100 100 83 82 . . 100 100 . . . . 100 45 100 100 100 Level 1 12 | . . . 16 17 . . . . . . . . . 54 . . . Level 2 . | . . . . . . . . . . . . . . . . . . Level 3 . | . . . . . . . . . . . . . . . . . . Level 4 . | . . . . . . . . . . . . . . . . . . Level 5 . | . . . . . . . . . . . . . . . . . . High Security . | . . . . . . . . . . . . . . . . . . Max Security . | . . . . . . . . . . . . . . . . . . Peak Influence 342 | 15 40 187 233 342 . . 65 15 . . . . 78 341 116 70 96 Initial 116 | . . . 72 81 . . 51 . . . . . 78 16 116 . . Average 75 | 1 6 60 123 97 . . 10 2 . . . . 54 188 41 24 10 Influence Increases 3091 | 35 50 334 556 653 . . 56 30 . . . 300 36 664 44 120 213 Destroy 0b10 Robot/C 1240 | . 40 200 180 400 . . . . . . . . . 340 . 20 60 Destroy 0b10 Robot/NC 200 | 35 . 25 55 50 . . . 5 . . . . . 10 . . 20 Destroy Leader 270 | . 10 42 62 110 . . . 2 . . . . . 34 . . 10 Allied During Kill 101 | . . . . . . . . . . . . . . 101 . . . Successful Hack 186 | . . 6 7 24 . . 36 . . . . . 15 49 12 25 12 Disable Machine 225 | . . 15 135 . . . . . . . . . 15 15 15 30 . Destroy Structure 224 | . . 1 72 24 . . 5 8 . . . . 6 10 2 . 96 Partial Spotted 30 | . . . . . . . . 15 . . . . . . 15 . . Lose Combat Pursuer 615 | . . 45 45 45 . . 15 . . . . 300 . 105 . 45 15 Influence Decreases 3036 | 35 50 163 546 510 221 21 138 30 . . . 175 127 476 266 119 159 Entered New Map 544 | . . . 99 100 121 21 31 . . . . . 47 18 106 . 1 Time Decay 2063 | 35 50 163 447 330 100 . 97 30 . . . 125 80 298 153 90 65 Lost Part 255 | . . . . 80 . . 10 . . . . 50 . . 7 15 93 Lost Ally 170 | . . . . . . . . . . . . . . 160 . 10 . Purge Threat 4 | . . . . . . . . . . . . . . . . 4 . Squads Dispatched 23 | . 1 1 . 5 . . 2 . . 1 . 1 . 2 2 . 8 Investigation 5 | . . . . . . . 1 . . . . . . 2 . . 2 Extermination 4 | . . . . 1 . . 1 . . . . . . . 1 . 1 Reinforcement 9 | . 1 1 . 1 . . . . . . . . . . 1 . 5 Assault 2 | . . . . . . . . . . 1 . 1 . . . . . Garrison 3 | . . . . 3 . . . . . . . . . . . . . Intercept . | . . . . . . . . . . . . . . . . . . Searches Triggered . | . . . . . . . . . . . . . . . . . . Construction Impeded 1 | . . . . . . . . . . . . . . . . . 1 Haulers Reinforced . | . . . . . . . . . . . . . . . . . . Active Scanning Responses . | . . . . . . . . . . . . . . . . . . Cargo Convoy Interrupts . | . . . . . . . . . . . . . . . . . . Stealth | -11 -10 -9 -8 -7 -7 -7 -6 -5 -5 -5 -5 -4 -4 -4 -3 -3 -2 --------- Run | Yrd Mat Mat Mat Fac Low Low Fac Fac Upp Upp Zhi Pro Fac Ext Res Qua Res Distress Signals 16 | . . 3 3 3 . . . . . . . . . 4 2 . 1 Communications Jammed . | . . . . . . . . . . . . . . . . . . Distress Signals . | . . . . . . . . . . . . . . . . . . Times Spotted 193 | . 6 20 22 30 . . 8 2 5 15 . 27 . 22 9 11 16 Peak Tracking Total 14 | . 2 5 4 7 . . 4 2 5 7 . 14 . 12 5 4 11 Tactical Retreats 36 | . . 3 3 1 . . 3 . 1 5 . 10 . 4 . 3 3 ECM-based Alert Blocks 38 | . . . 1 . . . 7 . 5 16 . 5 . . . 1 3 Traps | -11 -10 -9 -8 -7 -7 -7 -6 -5 -5 -5 -5 -4 -4 -4 -3 -3 -2 ------- Run | Yrd Mat Mat Mat Fac Low Low Fac Fac Upp Upp Zhi Pro Fac Ext Res Qua Res Traps Triggered 7 | . . . 1 1 . . . . . . . . . 1 1 1 2 Indirectly . | . . . . . . . . . . . . . . . . . . Trap Hack Attempts . | . . . . . . . . . . . . . . . . . . Triggered . | . . . . . . . . . . . . . . . . . . Disarmed . | . . . . . . . . . . . . . . . . . . Reprogrammed . | . . . . . . . . . . . . . . . . . . Reused . | . . . . . . . . . . . . . . . . . . Traps Extracted . | . . . . . . . . . . . . . . . . . . Installed . | . . . . . . . . . . . . . . . . . . Triggered . | . . . . . . . . . . . . . . . . . . Machines | -11 -10 -9 -8 -7 -7 -7 -6 -5 -5 -5 -5 -4 -4 -4 -3 -3 -2 ---------- Run | Yrd Mat Mat Mat Fac Low Low Fac Fac Upp Upp Zhi Pro Fac Ext Res Qua Res Machines Disabled 15 | . . 1 9 . . . . . . . . . 1 1 1 2 . Max in Single Turn 4 | . . 1 4 . . . . . . . . . 1 . 1 1 . Garrison Access 3 | . . . 1 . . . . . . . . . . . . 1 1 Energy Cycler 2 | . . . . . . . . . . . . . . 2 . . . Machines Repaired . | . . . . . . . . . . . . . . . . . . Machines Dismantled . | . . . . . . . . . . . . . . . . . . Machines Sabotaged . | . . . . . . . . . . . . . . . . . . Overloaded Fab Kills . | . . . . . . . . . . . . . . . . . . Hacking | -11 -10 -9 -8 -7 -7 -7 -6 -5 -5 -5 -5 -4 -4 -4 -3 -3 -2 --------- Run | Yrd Mat Mat Mat Fac Low Low Fac Fac Upp Upp Zhi Pro Fac Ext Res Qua Res Machines Accessed 60 | . 2 5 5 1 1 . 6 1 . . 9 . 3 10 3 9 5 Terminals 35 | . 2 4 3 . . . 4 . . . . . 2 9 . 8 3 Fabricators . | . . . . . . . . . . . . . . . . . . Repair Stations . | . . . . . . . . . . . . . . . . . . Recycling Units 3 | . . . . . . . 1 . . . . . 1 1 . . . Scanalyzers 7 | . . 1 1 1 . . 1 . . . . . . . 2 . 1 Garrison Access 5 | . . . 1 . . . . 1 . . . . . . 1 1 1 Total Hacks 160 | . 4 15 10 3 1 . 15 2 . . 48 . 5 18 6 22 11 Successful 109 | . 2 8 6 2 1 . 5 . . . 48 . 3 12 1 18 3 Failed 47 | . 2 6 3 . . . 10 2 . . . . 2 6 4 4 8 Catastrophic 9 | . . 2 1 . . . 2 2 . . . . 2 . . . . Database Lockouts 4 | . . 1 1 1 . . . . . . . . . . 1 . . Manual 56 | . 3 9 6 1 . . 5 . . . . . 5 10 1 9 7 Terminals 80 | . 4 13 6 . . . 9 . . . . . 4 16 . 21 7 Fabricators . | . . . . . . . . . . . . . . . . . . Repair Stations . | . . . . . . . . . . . . . . . . . . Recycling Units 4 | . . . . . . . 1 . . . . . 1 2 . . . Scanalyzers 19 | . . 2 3 3 . . 5 . . . . . . . 4 . 2 Garrison Access 8 | . . . 1 . . . . 2 . . . . . . 2 1 2 Terminal Hacks 82 | . 1 4 1 . 1 . 3 . . . 48 . . 9 . 15 . Record 50 | . . . . . . . 3 . . . 36 . . 3 . 8 . Part Schematic 4 | . . . . . . . . . . . 4 . . . . . . Robot Analysis 5 | . . 1 . . . . . . . . 4 . . . . . . Prototype ID Bank 4 | . . . . . . . . . . . 4 . . . . . . Open Door 6 | . . . . . 1 . . . . . . . . 5 . . . Level Access Points 4 | . . 1 . . . . . . . . . . . 1 . 2 . Branch Access Points 3 | . 1 . 1 . . . . . . . . . . . . 1 . Emergency Access Points 2 | . . 1 . . . . . . . . . . . . . 1 . Terminal Index 2 | . . 1 . . . . . . . . . . . . . 1 . Unreport Threat 1 | . . . . . . . . . . . . . . . . 1 . Locate Traps 1 | . . . . . . . . . . . . . . . . 1 . Fabricator Hacks . | . . . . . . . . . . . . . . . . . . Repair Station Hacks . | . . . . . . . . . . . . . . . . . . Recycling Unit Hacks 1 | . . . . . . . . . . . . . 1 . . . . Retrieve Components 1 | . . . . . . . . . . . . . 1 . . . . Scanalyzer 7 | . . 1 2 2 . . 1 . . . . . . . 1 . . Retrieve Study 7 | . . 1 2 2 . . 1 . . . . . . . 1 . . Garrison Access Hacks 3 | . . . 1 . . . . . . . . . . . . 1 1 Seal Access 3 | . . . 1 . . . . . . . . . . . . 1 1 Unauthorized Hacks 16 | . 1 3 2 . . . 1 . . . . . 2 3 . 2 2 Terminals 16 | . 1 3 2 . . . 1 . . . . . 2 3 . 2 2 Assimilate 2 | . . . . . . . . . . . . . . 1 . 1 . Botnet 14 | . 1 3 2 . . . 1 . . . . . 2 2 . 1 2 Fabricators . | . . . . . . . . . . . . . . . . . . Repair Stations . | . . . . . . . . . . . . . . . . . . Recycling Units . | . . . . . . . . . . . . . . . . . . Scanalyzers . | . . . . . . . . . . . . . . . . . . Garrison Access . | . . . . . . . . . . . . . . . . . . Data Cores Recovered 1 | . . 1 . . . . . . . . . . . . . . . Used . | . . . . . . . . . . . . . . . . . . Hacking Detections 35 | . 1 3 2 . . . 6 1 . . . . 3 7 2 6 4 Full Trace Events 4 | . . . . . . . 1 . . . . . . 2 . . 1 Feedback Events . | . . . . . . . . . . . . . . . . . . Feedback Blocked . | . . . . . . . . . . . . . . . . . . Robot Schematics Acquired 2 | . . . . . . . . . . . . . . . . 2 . Robots Built . | . . . . . . . . . . . . . . . . . . Authchips . | . . . . . . . . . . . . . . . . . . Time . | . . . . . . . . . . . . . . . . . . Total Robot Build Rating . | . . . . . . . . . . . . . . . . . . Part Schematics Acquired 4 | . . . . . . . . . . . 4 . . . . . . Parts Built . | . . . . . . . . . . . . . . . . . . Authchips . | . . . . . . . . . . . . . . . . . . Time . | . . . . . . . . . . . . . . . . . . Total Part Build Rating . | . . . . . . . . . . . . . . . . . . Part Studies Acquired 6 | . . 1 1 2 . . 1 . . . . . . . 1 . . Parts Repaired . | . . . . . . . . . . . . . . . . . . Time . | . . . . . . . . . . . . . . . . . . Parts Recycled . | . . . . . . . . . . . . . . . . . . Recycled Matter . | . . . . . . . . . . . . . . . . . . Retrieved Matter . | . . . . . . . . . . . . . . . . . . Retrieved Components 2 | . . . . . . . . . . . . . 2 . . . . Parts Scanalyzed . | . . . . . . . . . . . . . . . . . . Part Schematics Acquired . | . . . . . . . . . . . . . . . . . . Parts Damaged . | . . . . . . . . . . . . . . . . . . Bothacking | -11 -10 -9 -8 -7 -7 -7 -6 -5 -5 -5 -5 -4 -4 -4 -3 -3 -2 ------------ Run | Yrd Mat Mat Mat Fac Low Low Fac Fac Upp Upp Zhi Pro Fac Ext Res Qua Res Used RIF Installer . | . . . . . . . . . . . . . . . . . . Robots Hacked . | . . . . . . . . . . . . . . . . . . Non-combat . | . . . . . . . . . . . . . . . . . . Combat . | . . . . . . . . . . . . . . . . . . Robot Hacks Applied . | . . . . . . . . . . . . . . . . . . Relay Couplers Released . | . . . . . . . . . . . . . . . . . . Fabnet Peak Effective % . | . . . . . . . . . . . . . . . . . . Robots Rewired 6 | . . . . . . . . . . . . . . 6 . . . Allies Hacked . | . . . . . . . . . . . . . . . . . . Hacks Repelled . | . . . . . . . . . . . . . . . . . . Allies | -11 -10 -9 -8 -7 -7 -7 -6 -5 -5 -5 -5 -4 -4 -4 -3 -3 -2 -------- Run | Yrd Mat Mat Mat Fac Low Low Fac Fac Upp Upp Zhi Pro Fac Ext Res Qua Res Total Allies 12 | . . . . . . . . . . . . . . 11 . 1 . Largest Group 6 | . . . . . . . . . . . . . . 6 . 1 . Highest-Rated Group 205 | . . . . . . . . . . . . . . 205 . 10 . Highest-Rated Ally 51 | . . . . . . . . . . . . . . 51 . 10 . Total Orders . | . . . . . . . . . . . . . . . . . . Ally Attacks 74 | . . . . . . . . . . . . . . 74 . . . Total Damage 2488 | . . . . . . . . . . . . . . 2488 . . . Kills 19 | . . . . . . . . . . . . . . 19 . . . Allies Corrupted . | . . . . . . . . . . . . . . . . . . Allies Melted 2 | . . . . . . . . . . . . . . 2 . . . Intel | -11 -10 -9 -8 -7 -7 -7 -6 -5 -5 -5 -5 -4 -4 -4 -3 -3 -2 ------- Run | Yrd Mat Mat Mat Fac Low Low Fac Fac Upp Upp Zhi Pro Fac Ext Res Qua Res Active Infowar (turns) 7301 | 21 308 466 1189 973 203 9 534 197 289 304 134 684 173 673 416 272 456 Optics 4299 | . . . . . 159 9 533 197 289 304 134 684 173 673 416 272 456 Sensors 6708 | . . 315 1189 973 203 9 528 197 289 304 134 651 173 673 416 272 382 Terrain 1537 | . . . . . . . . . . . . 304 173 673 387 . . Seismic 480 | 21 308 151 . . . . . . . . . . . . . . . Jamming 5 | . . . . 5 . . . . . . . . . . . . . ECM 2107 | . . . 178 . . . 486 197 184 304 58 289 . . . 11 400 Robot Analysis Total 5 | . . 1 . . . . . . . . 4 . . . . . . Derelict Logs Recovered 6 | . . . . . 1 . . . 2 1 . 2 . . . . . Drone Launches . | . . . . . . . . . . . . . . . . . . Drone Recoveries . | . . . . . . . . . . . . . . . . . . Exploration | -11 -10 -9 -8 -7 -7 -7 -6 -5 -5 -5 -5 -4 -4 -4 -3 -3 -2 ------------- Run | Yrd Mat Mat Mat Fac Low Low Fac Fac Upp Upp Zhi Pro Fac Ext Res Qua Res Turns Passed 7516 | 224 308 467 1189 981 203 9 534 197 289 304 134 684 173 673 416 272 459 Spaces Moved 9535 | 73 207 255 649 484 483 30 820 318 491 886 424 1193 431 968 584 454 785 Core 111 | 10 . . . 1 . . . . . . . . . . . . 100 Treads . | . . . . . . . . . . . . . . . . . . Legs 1607 | 63 207 255 649 433 . . . . . . . . . . . . . Wheels . | . . . . . . . . . . . . . . . . . . Hover . | . . . . . . . . . . . . . . . . . . Flight 7817 | . . . . 50 483 30 820 318 491 886 424 1193 431 968 584 454 685 Fastest Speed 21 | 50 120 105 105 108 31 31 27 21 21 21 27 24 28 28 28 32 31 Average Speed 44 | 123 120 117 121 119 31 31 28 21 22 27 27 26 31 28 31 32 35 Slowest Speed 750 | 200 120 190 130 750 111 31 111 21 28 105 27 35 37 31 37 39 50 Overloaded Moves . | . . . . . . . . . . . . . . . . . . Propulsion Burnouts . | . . . . . . . . . . . . . . . . . . Robots Hopped 60 | . . . . . . . 11 . . 8 . . . 17 7 8 9 Potential Cave-ins 11 | . . . . . . . . . . . . . . . . 2 9 Cave-ins Triggered 1 | . . . . . . . . . . . . . . . . . 1 Teleports 1 | . . . . . . . . . . . 1 . . . . . . Exploration Rate (%) 41 | 7 34 24 49 11 59 5 21 11 68 93 63 94 14 67 16 83 29 Regions Visited 17 Branch Regions 8 Pre-discovered Areas 3 | . . . . . . . . . . . 3 . . . . . . Known Exits Taken 15 | . . 1 1 1 1 1 1 1 1 1 1 1 1 1 1 1 . Unknown Exits Taken 2 | 1 1 . . . . . . . . . . . . . . . . Scrap Searched 15 | . . . . . 2 1 . . 3 5 . 4 . . . . . Spaces Dug 28 | . . . 1 . . . 5 4 . . . 7 3 1 1 . 6 Terrain Destroyed 187 | . . . 79 22 . . 5 4 . . . 7 3 1 1 . 65 Melee 28 | . . . 1 . . . 5 4 . . . 7 3 1 1 . 6 Projectile 22 | . . . . 22 . . . . . . . . . . . . . AOE 137 | . . . 78 . . . . . . . . . . . . . 59 Terrain Rammed . | . . . . . . . . . . . . . . . . . . Walls Destroyed . | . . . . . . . . . . . . . . . . . . Machines Disabled . | . . . . . . . . . . . . . . . . . . Actions | -11 -10 -9 -8 -7 -7 -7 -6 -5 -5 -5 -5 -4 -4 -4 -3 -3 -2 --------- Run | Yrd Mat Mat Mat Fac Low Low Fac Fac Upp Upp Zhi Pro Fac Ext Res Qua Res Total 12267 | 161 247 358 966 762 535 29 1107 434 668 934 445 1533 455 1340 800 557 936 Wait 2186 | 56 20 40 220 161 41 . 254 101 164 54 3 304 5 353 201 82 127 Move 9401 | 72 206 254 648 483 482 29 797 317 490 869 423 1192 430 936 570 437 766 Hop 56 | . . . . . . . 11 . . 8 . . . 14 6 8 9 Pick Up 60 | 2 3 8 11 11 4 . 5 1 1 . 5 . 4 . 1 1 3 Fast Attach 78 | 7 2 3 3 15 . . 3 4 1 . 4 8 5 1 5 11 6 Attach 50 | . . 1 2 8 1 . 11 3 . 3 2 6 4 . 2 4 3 Detach 41 | . 2 1 . 5 2 . 11 2 3 . 3 8 . . 1 2 1 Swap 38 | 1 1 7 14 2 1 . 4 1 4 . . . 2 . 1 . . Drop 88 | . 2 8 20 18 4 . 6 . 5 . 5 3 1 . 5 6 5 Fire 174 | 23 11 35 45 58 . . . . . . . . . . . . 2 Melee 54 | . . 1 3 . . . 5 5 . . . 12 4 4 6 4 10 Ram 3 | . . . . . . . . . . . . . . . . . 3 Kick 1 | . . . . 1 . . . . . . . . . . . . . Crush . | . . . . . . . . . . . . . . . . . . Escape Stasis 7 | . . . . . . . . . . . . . . 2 2 2 1 Rewire 30 | . . . . . . . . . . . . . . 30 . . . Trap . | . . . . . . . . . . . . . . . . . . Miscellaneous . | . . . . . . . . . . . . . . . . . . Route ------- -11/Scrapyard -10/Materials (discovered 3 exits: *Mat / Min x2) -9/Materials (discovered 3 exits: *Mat x3) -8/Materials -7/Factory -7/Lower Caves -7/Lower Caves -6/Factory (discovered 3 exits: *Fac x2 / *Low) -5/Factory -5/Upper Caves -5/Upper Caves -5/Zhirov -4/Proximity Caves -4/Factory -4/Extension (discovered 2 exits: *Res x2) -3/Research (discovered 3 exits: Res / Arm / *Qua) -3/Quarantine -2/Research History --------- Turn | Location | Event 3 | -11/Scrapyard | Discovered new exit (range 16) 225 | -11/Scrapyard | Entered Materials 302 | -10/Materials | Build established: Mutant 329 | -10/Materials | Discovered new exit (range 16) 523 | -10/Materials | Identified exit to Mines 533 | -10/Materials | Entered another Materials area 533 | -9/Materials | Evolved 2 slots: Propulsion x2 586 | -9/Materials | Identified exit to Materials 670 | -9/Materials | Central database locked down 1000 | -9/Materials | Entered another Materials area 1000 | -8/Materials | Evolved 2 slots: Utility x2 1277 | -8/Materials | Build established: Scavenger-Mutant 1646 | -8/Materials | Build established: Mutant 2010 | -8/Materials | Central database locked down 2134 | -8/Materials | Discovered new exit (range 15) 2152 | -8/Materials | Identified exit to Factory 2189 | -8/Materials | Entered Factory 2189 | -7/Factory | Evolved 2 slots: Utility x1, Weapon x1 2555 | -7/Factory | Build established: Skirmisher 2587 | -7/Factory | Central database locked down 2859 | -7/Factory | Garrison activated, responded to threat 2874 | -7/Factory | Discovered new exit (range 14) 3122 | -7/Factory | Identified exit to Lower Caves 3170 | -7/Factory | Entered Lower Caves 3223 | -7/Lower Caves | Learned 12 Factory zone layouts 3369 | -7/Lower Caves | Discovered new exit (range 13) 3373 | -7/Lower Caves | Identified exit to Lower Caves 3373 | -7/Lower Caves | Entered another Lower Caves area 3377 | -7/Lower Caves | Discovered new exit (range 3) 3378 | -7/Lower Caves | Identified exit to Factory 3382 | -7/Lower Caves | Entered Factory 3382 | -6/Factory | Evolved 2 slots: Power x1, Propulsion x1 3383 | -6/Factory | Identified exit to Factory 3514 | -6/Factory | Build established: Scout 3794 | -6/Factory | Discovered new exit (range 4) 3795 | -6/Factory | Identified exit to Lower Caves 3913 | -6/Factory | Discovered exit to Factory (range 11) 3916 | -6/Factory | Entered another Factory area 3916 | -5/Factory | Evolved 2 slots: Propulsion x2 4087 | -5/Factory | Discovered new exit (range 16) 4112 | -5/Factory | Identified exit to Upper Caves 4113 | -5/Factory | Entered Upper Caves 4120 | -5/Upper Caves | Learned Factory emergency access door positions 4222 | -5/Upper Caves | Build established: Ninja 4227 | -5/Upper Caves | Attracted the attention of an 0b10 checkpoint 4393 | -5/Upper Caves | Discovered new exit (range 11) 4396 | -5/Upper Caves | Identified exit to Upper Caves 4402 | -5/Upper Caves | Entered another Upper Caves area 4450 | -5/Upper Caves | P-70 Sage assimilated allied W7-F47(k) 4602 | -5/Upper Caves | Learned location of 1 exit from Proximity Caves 4612 | -5/Upper Caves | Attracted the attention of an 0b10 outpost 4674 | -5/Upper Caves | Encountered a Warlord checkpoint 4676 | -5/Upper Caves | Build established: Scout 4679 | -5/Upper Caves | Lost 5 parts (1p4n) 4706 | -5/Upper Caves | Discovered new exit (range 2) 4706 | -5/Upper Caves | Identified exit to Zhirov 4706 | -5/Upper Caves | Entered Zhirov 4706 | -5/Zhirov | Discovered new exit (range 3) 4707 | -5/Zhirov | Identified exit to Proximity Caves 4716 | -5/Zhirov | Learned location of Quarantine (-3) 4716 | -5/Zhirov | Learned location of Testing (-2) 4716 | -5/Zhirov | Learned location of Command (-1) 4763 | -5/Zhirov | Found Alien Artifact 4765 | -5/Zhirov | Identified Transdimensional Reconstructor 4765 | -5/Zhirov | Warped through subspace 4778 | -5/Zhirov | Found Alien Artifact 4779 | -5/Zhirov | Identified Integrated Reactor 4779 | -5/Zhirov | Installed Integrated Reactor, increased core energy generation (+10) 4840 | -5/Zhirov | Entered Proximity Caves 4841 | -4/Proximity Caves | Identified exit to Factory 4867 | -4/Proximity Caves | Learned 4 Research zone layouts 4883 | -4/Proximity Caves | Learned location of 1 exit from Research 5484 | -4/Proximity Caves | Attracted the attention of an 0b10 outpost 5524 | -4/Proximity Caves | Entered Factory 5524 | -4/Factory | Evolved 2 slots: Utility x2 5540 | -4/Factory | Lost 4 parts (4n) 5553 | -4/Factory | Found Fusion Bomb Launcher 5693 | -4/Factory | Discovered new exit (range 16) 5697 | -4/Factory | Identified exit to Extension 5697 | -4/Factory | Entered Extension 5713 | -4/Extension | Rescued a captive Derelict 5715 | -4/Extension | Rescued a captive Derelict 5802 | -4/Extension | Identified exit to Research 5842 | -4/Extension | Rescued a captive Derelict 5867 | -4/Extension | Rescued a captive Derelict 5868 | -4/Extension | Lost 3 allies 5982 | -4/Extension | Spotted B-86 Titan 5986 | -4/Extension | Rescued a captive Derelict 6030 | -4/Extension | Lost 3 allies 6047 | -4/Extension | Warlord forces began an assault 6086 | -4/Extension | Spotted B-86 Titan 6124 | -4/Extension | Build established: Hacker-Scout 6332 | -4/Extension | Energy Cycler disabled 6334 | -4/Extension | Rescued a captive Derelict 6346 | -4/Extension | Rescued a captive Derelict 6370 | -4/Extension | Entered Research 6370 | -3/Research | Evolved 2 slots: Utility x2 6371 | -3/Research | Identified exit to Armory 6372 | -3/Research | Identified exit to Quarantine 6373 | -3/Research | Identified exit to Research 6513 | -3/Research | Central database locked down 6782 | -3/Research | Spotted B-90 Cyclops 6786 | -3/Research | Entered Quarantine 6864 | -3/Quarantine | Found Alien Artifact 6864 | -3/Quarantine | Identified Terrabomb 6864 | -3/Quarantine | Used Terrabomb 6873 | -3/Quarantine | Found Alien Artifact 6873 | -3/Quarantine | Identified Dimensional Node Initializer 6873 | -3/Quarantine | Initialized slip node 6904 | -3/Quarantine | Lost 4 parts (1p2n1w) 6941 | -3/Quarantine | Found Alien Artifact 6941 | -3/Quarantine | Identified Subatomic Replicator 7058 | -3/Quarantine | Entered Research 7058 | -2/Research | Evolved 2 slots: Utility x2 7124 | -2/Research | Spotted B-90 Cyclops 7454 | -2/Research | Crushed by falling debris 7455 | -2/Research | System corruption reached 10% 7466 | -2/Research | Core integrity fell below 50% 7501 | -2/Research | Lost 17 parts (2p6n6u3w) 7512 | -2/Research | Core integrity fell below 20% 7517 | -2/Research | Destroyed by H-81 Overseer with Heavy Linear Accelerator Last Messages --------------- the area. 07511_ Slammed into H-81 Overseer. 07511_ H-81 Overseer calls for reinforcements. 07511_ ALERT: Hostile activity reported, dispatching reinforcements to area. 07511_ Knocked back. 07512_ Penetrated by Slug. 07512_ Slug penetrates Wall. 07513_ Penetrated by Slug. 07513_ Slug penetrates H-88 Terminator. 07513_ H-88 Terminator suffers critical hit (Destroy). 07513_ H-88 Terminator destroyed. 07514_ K-01 Serf collects debris. 07514_ Slug penetrates H-88 Terminator. 07514_ Penetrated by Slug. 07514_ Enh. Optical Array destroyed. 07515_ Slammed into K-01 Serf. 07515_ Knocked back. [Achievement: This Is Interesting...] Map ----- +----------------------------------------------------+ | ?????????????????????# # # | | ?????????????????????# # | | ?????????????????????########## ######+### | | ??????????????????????????????# ## # | | ??????????????????????????????# ## # | | ??????????????????????????????# ## # | | ??????????????????????????????# ## # # | | ?????????????????????#######??# + # # | | ?????????????????????# ! ?# ## # # | | ?????????????????????# ?# ##""" # # | | ?????????????????????# # ##""" [ # # | | ?????????????????????# # ##""" # # | | ?????????????????????# """ ## # # | | ?????????????????????#! """ # ## # # | | ?????????????????????# """ # ^ ########## # | | ?????????????????????#! ?# ^ #???? # / | | ?????????????????????# ?# #?? # # | | ?????????????????????####+##??# #? "" # # | | ??????#?????##+?????????# #???# # Y" # # | | ??????# A ?????### ###?# ; "" # | | ??????# ##### #?# # # | | ??????# !kH ### # # | | ??????# =%* % #? ! # | | ??????# =[ %#######?? ####+# | | ??????# ##### %##?????????######????? | | ??????#^ ??????###@###????????????????????? | | ??????# ?????????! ?????????????????????? | | ??????# ??????????# #???????????????????? | | ??????? ????????????# #???????????????????? | | ??????? ??????????????# #???????????????????? | | ??????????????????????# #???????????????????? | | ??????????????????????# ]#???????????????????? | | ??????????????????????########???????????????????? | | ?????????????????????????????????????????????????? | | ?????????????????????????????????????????????????? | | ?????????????????????????????????????????????????? | | ?????????????????????????????????????????????????? | | ?????????????????????????????????????????????????? | | ?????????????????????????????????????????????????? | | ?????????????????????????????????????????????????? | | ?????????????????????????????????????????????????? | | ?????????????????????????????????????????????????? | | ?????????????????????????????????????????????????? | | ?????????????????????????????????????????????????? | | ?????????????????????????????????????????????????? | | ?????????????????????????????????????????????????? | | ????????????????????????????????????????????????## | | ????????????????????????????????????????????????# | | ????????????????????????????????????????????????# | | ????????????????????????????????????????????????# | +----------------------------------------------------+ Best States ------------- Heat Dissipation 49 Energy Generation 49 Energy Capacity 455 Matter Stores 300 Matter Capacity 300 Sight Range 22 Robot Scan Range 16 Terrain Scan Range 20 Terrain Scan Density 85 ECM Strength 2 Base Temperature (-) 200 Armor Coverage 225 Phase Shifting 10 Evasion (%) 73 Kinecelleration 30 Offensive Hacking 46 Defensive Hacking 14 Item Schematics ----------------- Assault Drone Bay | -5/Zhirov | Free Exp. Heat Sink | -5/Zhirov | Free Exp. Optical Array | -5/Zhirov | Free Imp. Arc Thrower | -5/Zhirov | Free Robot Schematics ------------------ E-15 Imp | -3/Quarantine | Archive B-74 Champion | -3/Quarantine | Archive Fabricated ------------ Nothing Repaired ---------- Nothing Studied --------- Aluminum Leg | -9/Materials | Hacked Carbon-fiber Leg | -8/Materials | Hacked Imp. Titanium Leg | -7/Factory | Hacked Imp. Deuterium Engine | -7/Factory | Hacked Xenon Bombardment Thruster | -6/Factory | Hacked Impulse Thruster | -3/Research | Hacked Alien Tech Used ----------------- Transdimensional Reconstructor Integrated Reactor Terrabomb Dimensional Node Initializer Subatomic Replicator Achievements -------------- Prolific Hacker Subspace Traveler This Is Interesting... root@ Challenges ------------ None Game ------ Seed AblativeSlugDissipator Manual? 0 Play Time 02:15:32 Cumulative 30.9 hours Start 2026.01.26 @ 11:30:21 End 2026.01.26 @ 13:52:16 Sessions 1 Manual Loads 0 Difficulty Rogue Special Mode None Game No. 34 Rogue 34 Adventurer 0 Explorer 0 Win Type - Total 0 Types 0/0/0/0/0/0/0/0/0/0 Lore% 29 Gallery% 30 Achievement% 26 Wizard Run 0 Options --------- Layout 1 ASCII 0 Keyboard 1 Movement Numpad Keybinds 0 Fullscreen 1 Font 48/Smallcaps Map View 50x35 Zoom Use 0% Tactical HUD 1 Map Filters NONE Filters NONE Steam 1 RUN: 087e89c9-a18c-40d5-aa73-6389a3b713ab